fUSD/lending_fUSD_20250206
["ID","MTS","AMOUNT","RATE_DAILY","PERIOD"]
[351947735,1738858242214,-500.0,0.00019178,2]
[351947737,1738858242224,-500.0,0.00019178,2]
[351947738,1738858242233,-152.686574,0.00019178,2]
[351947739,1738858242243,-509.96755594,0.00019178,2]
[351947740,1738858242253,-500.0,0.00019178,2]
[351947741,1738858242262,-500.0,0.00019178,2]
[351947742,1738858242278,-500.0,0.00019178,2]
[351947743,1738858242287,-500.0,0.00019178,2]
[351947744,1738858242296,-1024.39,0.00019178,2]
[351947745,1738858242305,-500.0,0.00019178,2]
[351947746,1738858242314,-503.35240473,0.00019178,2]
[351947761,1738858242515,-500.0,0.00019178,2]
[351947763,1738858242527,-500.0,0.00019178,2]
[351947765,1738858242537,-824.23,0.00019178,2]
[351947767,1738858242546,-500.0,0.00019178,2]
[351947769,1738858242556,-703.1,0.00019178,2]
[351947771,1738858242565,-500.0,0.00019178,2]
[351947772,1738858242575,-500.0,0.00019178,2]
[351947774,1738858242584,-796.71,0.00019178,2]
[351947776,1738858242593,-500.0,0.00019178,2]
[351947778,1738858242603,-500.0,0.00019178,2]
[351947780,1738858242613,-500.0,0.00019178,2]
[351947783,1738858242623,-1283.6,0.00019178,2]
[351947784,1738858242632,-500.0,0.00019178,2]
[351947786,1738858242641,-500.0,0.00019178,2]
[351947789,1738858242651,-500.0,0.00019178,2]
[351947790,1738858242661,-500.0,0.00019178,2]
[351947792,1738858242670,-500.0,0.00019178,2]
[351947794,1738858242679,-1978.21,0.00019178,2]
[351947797,1738858242689,-500.0,0.00019178,2]
[351947798,1738858242698,-500.0,0.00019178,2]
[351947800,1738858242708,-500.0,0.00019178,2]
[351947802,1738858242718,-500.0,0.00019178,2]
[351947804,1738858242727,-500.0,0.00019178,2]
[351947806,1738858242737,-1491.48,0.00019178,2]
[351947808,1738858242746,-500.0,0.00019178,2]
[351947810,1738858242756,-500.0,0.00019178,2]
[351947813,1738858242766,-500.0,0.00019178,2]
[351947814,1738858242776,-500.0,0.00019178,2]
[351947816,1738858242786,-500.0,0.00019178,2]
[351947818,1738858242795,-944.7,0.00019178,2]
[351947820,1738858242805,-545.59,0.00019178,2]
[351947822,1738858242814,-503.32684782,0.00019178,2]
[351947824,1738858242823,-500.0,0.00019178,7]
[351947827,1738858242832,-500.0,0.00019178,2]
[351947830,1738858242841,-500.0,0.00019178,2]
[351947833,1738858242851,-500.0,0.00019178,2]
[351947836,1738858242862,-500.0,0.00019178,2]
[351947838,1738858242871,-500.0,0.00019178,2]
[351947841,1738858242880,-500.0,0.00019178,2]
[351947843,1738858242890,-564.2,0.00019178,2]
[351947845,1738858242900,-500.0,0.00019178,2]
[351947848,1738858242913,-691.15,0.00019178,2]
[351947850,1738858242922,-500.0,0.00019178,2]
[351947852,1738858242932,-409.96291131,0.00019178,2]
[351947854,1738858242942,-1482.81,0.00019178,2]
[351947856,1738858242951,-500.0,0.00019178,2]
[351947858,1738858242961,-500.0,0.00019178,2]
[351947860,1738858242970,-500.0,0.00019178,2]
[351947862,1738858242980,-500.0,0.00019178,2]
[351947864,1738858242990,-500.84114335,0.00019178,2]
[351947866,1738858243000,-500.0,0.00019178,2]
[351947868,1738858243010,-915.12,0.00019178,2]
[351947870,1738858243021,-500.0,0.00019178,2]
[351947872,1738858243030,-500.0,0.00019178,2]
[351947874,1738858243040,-1565.8,0.00019178,2]
[351947876,1738858243049,-944.74,0.00019178,2]
[351947878,1738858243059,-500.0,0.00019178,2]
[351947880,1738858243068,-500.0,0.00019178,2]
[351947882,1738858243078,-500.0,0.00019178,2]
[351947884,1738858243088,-793.69,0.00019178,2]
[351947886,1738858243098,-856.72,0.00019178,2]
[351947888,1738858243108,-846.93,0.00019178,2]
[351947890,1738858243117,-500.0,0.00019178,2]
[351947892,1738858243127,-500.0,0.00019178,2]
[351947894,1738858243136,-500.0,0.00019178,2]
[351947896,1738858243149,-500.0,0.00019178,2]
[351947898,1738858243158,-500.0,0.00019178,2]
[351947900,1738858243168,-500.0,0.00019178,2]
[351947902,1738858243179,-312.6246228,0.00019178,2]
[351947904,1738858243189,-500.0,0.00019178,2]
[351947906,1738858243198,-776.8,0.00019178,2]
[351947908,1738858243207,-500.0,0.00019178,2]
[351947910,1738858243219,-500.0,0.00019178,2]
[351947912,1738858243229,-500.0,0.00019178,2]
[351947914,1738858243238,-500.0,0.00019178,2]
[351947916,1738858243247,-500.0,0.00019178,2]
[351947918,1738858243256,-500.0,0.00019178,2]
[351947920,1738858243266,-1173.58,0.00019178,2]
[351947922,1738858243276,-1045.37,0.00019178,2]
[351947924,1738858243285,-500.0,0.00019178,2]
[351947926,1738858243294,-500.0,0.00019178,2]
[351947928,1738858243303,-627.93,0.00019178,2]
[351947930,1738858243312,-500.0,0.00019178,2]
[351947932,1738858243322,-823.86,0.00019178,2]
[351947934,1738858243332,-300.0,0.00019178,2]
[351947936,1738858243341,-500.0,0.00019178,2]
[351947938,1738858243350,-1443.03,0.00019178,2]
[351947940,1738858243359,-1011.15,0.00019178,2]
[351947942,1738858243369,-500.0,0.00019178,2]
[351947944,1738858243378,-500.0,0.00019178,2]
[351947946,1738858243388,-502.58,0.00019178,2]
[351947948,1738858243397,-1015.42,0.00019178,2]
[351947950,1738858243407,-564.57,0.00019178,2]
[351947952,1738858243416,-500.0,0.00019178,2]
[351947954,1738858243426,-596.01,0.00019178,2]
[351947956,1738858243436,-500.0,0.00019178,2]
[351947958,1738858243446,-500.0,0.00019178,2]
[351947960,1738858243456,-998.69,0.00019178,2]
[351947963,1738858243465,-1328.63,0.00019178,2]
[351947965,1738858243475,-500.0,0.00019178,2]
[351947967,1738858243484,-500.0,0.00019178,2]
[351947969,1738858243493,-1118.26,0.00019178,2]
[351947971,1738858243503,-500.0,0.00019178,2]
[351947973,1738858243512,-500.0,0.00019178,2]
[351947975,1738858243524,-523.26,0.00019178,2]
[351947977,1738858243534,-500.0,0.00019178,2]
[351947979,1738858243543,-743.82,0.00019178,2]
[351947981,1738858243552,-500.0,0.00019178,2]
[351947983,1738858243563,-844.27,0.00019178,2]
[351947985,1738858243573,-500.0,0.00019178,2]
[351947987,1738858243583,-500.0,0.00019178,2]
[351947989,1738858243593,-978.47,0.00019178,2]
[351947991,1738858243602,-852.29,0.00019178,2]
[351947993,1738858243611,-500.0,0.00019178,2]
[351947995,1738858243622,-500.0,0.00019178,2]
[351947997,1738858243632,-500.0,0.00019178,2]
[351947999,1738858243642,-500.0,0.00019178,2]
[351948001,1738858243652,-500.0,0.00019178,2]
[351948003,1738858243662,-500.0,0.00019178,2]
[351948005,1738858243672,-500.0,0.00019178,2]
[351948007,1738858243681,-500.0,0.00019178,2]
[351948009,1738858243691,-661.66,0.00019178,2]
[351948011,1738858243701,-500.0,0.00019178,2]
[351948013,1738858243712,-500.0,0.00019178,2]
[351948015,1738858243722,-1043.75,0.00019178,2]
[351948017,1738858243731,-500.0,0.00019178,2]
[351948019,1738858243741,-571.11,0.00019178,2]
[351948021,1738858243750,-500.0,0.00019178,2]
[351948023,1738858243760,-548.88,0.00019178,2]
[351948025,1738858243771,-500.0,0.00019178,2]
[351948027,1738858243781,-157.25509575,0.00019178,2]
[351948029,1738858243790,-500.0,0.00019178,2]
[351948031,1738858243800,-500.0,0.00019178,2]
[351948033,1738858243810,-976.57,0.00019178,2]
[351948035,1738858243820,-1055.68,0.00019178,2]
[351948037,1738858243830,-500.0,0.00019178,2]
[351948039,1738858243839,-500.0,0.00019178,2]
[351948041,1738858243848,-500.0,0.00019178,2]
[351948043,1738858243858,-500.0,0.00019178,2]
[351948045,1738858243868,-500.0,0.00019178,2]
[351948047,1738858243877,-500.0,0.00019178,2]
[351948049,1738858243887,-883.86,0.00019178,2]
[351948051,1738858243896,-500.0,0.00019178,2]
[351948053,1738858243906,-500.0,0.00019178,2]
[351948055,1738858243916,-500.0,0.00019178,2]
[351948057,1738858243925,-917.44,0.00019178,2]
[351948059,1738858243935,-500.0,0.00019178,2]
[351948061,1738858243944,-722.15,0.00019178,2]
[351948063,1738858243954,-500.0,0.00019178,2]
[351948065,1738858243963,-500.0,0.00019178,2]
[351948067,1738858243972,-500.0,0.00019178,2]
[351948069,1738858243982,-500.0,0.00019178,2]
[351948071,1738858243991,-500.0,0.00019178,2]
[351948073,1738858244001,-500.0,0.00019178,2]
[351948075,1738858244010,-543.41,0.00019178,2]
[351948077,1738858244021,-500.0,0.00019178,2]
[351948079,1738858244031,-500.0,0.00019178,2]
[351948081,1738858244040,-500.0,0.00019178,2]
[351948083,1738858244049,-500.0,0.00019178,2]
[351948085,1738858244059,-1370.69,0.00019178,2]
[351948087,1738858244069,-500.0,0.00019178,2]
[351948089,1738858244078,-500.0,0.00019178,2]
[351948091,1738858244088,-500.0,0.00019178,2]
[351948093,1738858244097,-158.14684259,0.00019178,2]
[351948095,1738858244107,-500.0,0.00019178,2]
[351948097,1738858244116,-931.97,0.00019178,2]
[351948099,1738858244125,-500.0,0.00019178,2]
[351948101,1738858244136,-500.0,0.00019178,2]
[351948103,1738858244145,-813.88,0.00019178,2]
[351948105,1738858244160,-500.0,0.00019178,2]
[351948107,1738858244169,-500.0,0.00019178,2]
[351948109,1738858244179,-500.0,0.00019178,2]
[351948111,1738858244189,-557.68,0.00019178,2]
[351948113,1738858244199,-500.0,0.00019178,2]
[351948115,1738858244208,-865.59,0.00019178,2]
[351948117,1738858244218,-500.0,0.00019178,2]
[351948119,1738858244229,-1814.4,0.00019178,2]
[351948121,1738858244239,-755.14,0.00019178,2]
[351948123,1738858244248,-500.0,0.00019178,2]
[351948125,1738858244257,-500.0,0.00019178,2]
[351948127,1738858244269,-500.0,0.00019178,2]
[351948129,1738858244278,-500.0,0.00019178,2]
[351948131,1738858244288,-1003.65,0.00019178,2]
[351948133,1738858244297,-500.0,0.00019178,2]
[351948135,1738858244307,-430.72981043,0.00019178,2]
[351948137,1738858244317,-500.0,0.00019178,2]
[351948139,1738858244326,-1358.71,0.00019178,2]
[351948141,1738858244335,-694.27,0.00019178,2]
[351948143,1738858244345,-500.0,0.00019178,2]
[351948145,1738858244355,-500.0,0.00019178,2]
[351948147,1738858244364,-371.29792101,0.00019178,2]
[351948149,1738858244373,-500.0,0.00019178,2]
[351948151,1738858244383,-500.0,0.00019178,2]
[351948153,1738858244392,-500.0,0.00019178,2]
[351948155,1738858244402,-500.0,0.00019178,2]
[351948157,1738858244411,-500.0,0.00019178,2]
[351948159,1738858244421,-500.0,0.00019178,2]
[351948161,1738858244429,-500.0,0.00019178,2]
[351948162,1738858244439,-500.0,0.00019178,2]
[351948165,1738858244449,-749.21,0.00019178,2]
[351948166,1738858244459,-500.0,0.00019178,2]
[351948169,1738858244468,-1081.3,0.00019178,2]
[351948171,1738858244478,-500.0,0.00019178,2]
[351948173,1738858244487,-1019.16,0.00019178,2]
[351948175,1738858244497,-500.0,0.00019178,2]
[351948177,1738858244507,-2626.32,0.00019178,2]
[351948178,1738858244515,-500.0,0.00019178,2]
[351948180,1738858244525,-500.0,0.00019178,2]
[351948182,1738858244535,-712.39,0.00019178,2]
[351948184,1738858244544,-500.0,0.00019178,2]
[351948186,1738858244553,-500.0,0.00019178,2]
[351948188,1738858244562,-500.0,0.00019178,2]
[351948190,1738858244572,-981.55,0.00019178,2]
[351948192,1738858244581,-500.0,0.00019178,2]
[351948194,1738858244590,-500.0,0.00019178,2]
[351948196,1738858244600,-500.0,0.00019178,2]
[351948198,1738858244609,-500.0,0.00019178,2]
[351948200,1738858244619,-500.0,0.00019178,2]
[351948202,1738858244629,-927.33,0.00019178,2]
[351948204,1738858244639,-500.0,0.00019178,2]
[351948206,1738858244648,-500.0,0.00019178,2]
[351948208,1738858244658,-500.0,0.00019178,2]
[351948209,1738858244668,-500.0,0.00019178,2]
[351948211,1738858244678,-500.0,0.00019178,2]
[351948212,1738858244687,-500.0,0.00019178,2]
[351948213,1738858244697,-501.78763582,0.00019178,2]
[351948215,1738858244707,-1002.35,0.00019178,2]
[351948217,1738858244716,-1035.46,0.00019178,2]
[351948219,1738858244726,-500.0,0.00019178,2]
[351948220,1738858244735,-500.0,0.00019178,2]
[351948221,1738858244747,-500.0,0.00019178,2]
[351948222,1738858244757,-500.0,0.00019178,2]
[351948223,1738858244766,-1471.78,0.00019178,2]
[351948224,1738858244776,-500.0,0.00019178,2]
[351948225,1738858244786,-646.83,0.00019178,2]
[351948226,1738858244795,-1179.16,0.00019178,2]
[351948227,1738858244805,-500.0,0.00019178,2]
[351948228,1738858244814,-500.0,0.00019178,2]
[351948229,1738858244824,-500.0,0.00019178,2]
[351948230,1738858244833,-1549.5,0.00019178,2]
[351948231,1738858244842,-500.0,0.00019178,2]
[351948232,1738858244851,-1096.65,0.00019178,2]
[351948233,1738858244861,-676.02,0.00019178,2]
[351948234,1738858244871,-500.0,0.00019178,2]
[351948235,1738858244880,-500.0,0.00019178,2]
[351948236,1738858244890,-500.0,0.00019178,2]
[351948237,1738858244899,-500.0,0.00019178,2]
[351948238,1738858244909,-500.0,0.00019178,2]
[351948239,1738858244919,-500.0,0.00019178,2]
[351948240,1738858244929,-400.0,0.00019178,2]
[351948241,1738858244939,-954.96,0.00019178,2]
[351948242,1738858244948,-310.95751334,0.00019178,2]
[351948243,1738858244958,-229.23057673,0.00019178,2]
[351948244,1738858244967,-500.0,0.00019178,2]
[351948245,1738858244976,-447.51075857,0.00019178,2]
[351948246,1738858244986,-665.37,0.00019178,2]
[351948247,1738858244995,-508.88973151,0.00019178,2]
[351948248,1738858245005,-500.0,0.00019178,2]
[351948249,1738858245014,-500.0,0.00019178,2]
[351948250,1738858245025,-500.0,0.00019178,2]
[351948251,1738858245034,-500.0,0.00019178,2]
[351948252,1738858245044,-500.0,0.00019178,2]
[351948253,1738858245053,-500.0,0.00019178,2]
[351948254,1738858245062,-500.0,0.00019178,2]
[351948255,1738858245072,-500.0,0.00019178,2]
[351948256,1738858245082,-541.91,0.00019178,2]
[351948257,1738858245092,-500.0,0.00019178,2]
[351948258,1738858245101,-500.0,0.00019178,2]
[351948259,1738858245111,-500.0,0.00019178,2]
[351948260,1738858245120,-500.0,0.00019178,2]
[351948261,1738858245130,-500.0,0.00019178,2]
[351948262,1738858245142,-500.0,0.00019178,2]
[351948263,1738858245152,-992.03,0.00019178,2]
[351948264,1738858245161,-619.89,0.00019178,2]
[351948265,1738858245170,-500.0,0.00019178,2]
[351948266,1738858245180,-500.0,0.00019178,2]
[351948267,1738858245190,-500.0,0.00019178,2]
[351948268,1738858245199,-500.0,0.00019178,2]
[351948269,1738858245209,-500.0,0.00019178,2]
[351948270,1738858245218,-1219.06,0.00019178,2]
[351948271,1738858245229,-500.0,0.00019178,2]
[351948272,1738858245238,-500.0,0.00019178,2]
[351948273,1738858245248,-500.0,0.00019178,2]
[351948274,1738858245258,-959.83,0.00019178,2]
[351948275,1738858245269,-1000.0,0.00019178,7]
[351948276,1738858245279,-500.0,0.00019178,2]
[351948277,1738858245288,-1299.03,0.00019178,2]
[351948278,1738858245298,-500.0,0.00019178,2]
[351948279,1738858245307,-500.0,0.00019178,2]
[351948280,1738858245317,-500.0,0.00019178,2]
[351948281,1738858245327,-804.9,0.00019178,2]
[351948282,1738858245336,-500.0,0.00019178,2]
[351948283,1738858245346,-500.0,0.00019178,2]
[351948284,1738858245356,-500.0,0.00019178,2]
[351948285,1738858245365,-648.31,0.00019178,2]
[351948286,1738858245375,-500.0,0.00019178,2]
[351948287,1738858245384,-500.0,0.00019178,2]
[351948288,1738858245394,-500.0,0.00019178,2]
[351948289,1738858245404,-500.0,0.00019178,2]
[351948290,1738858245414,-513.37071642,0.00019178,2]
[351948291,1738858245424,-535.73,0.00019178,2]
[351948292,1738858245433,-500.0,0.00019178,2]
[351948293,1738858245443,-500.0,0.00019178,2]
[351948294,1738858245453,-500.0,0.00019178,2]
[351948295,1738858245462,-500.0,0.00019178,2]
[351948296,1738858245471,-500.0,0.00019178,2]
[351948297,1738858245481,-500.0,0.00019178,2]
[351948298,1738858245491,-561.78,0.00019178,2]
[351948299,1738858245500,-502.10317483,0.00019178,2]
[351948300,1738858245510,-500.0,0.00019178,2]
[351948301,1738858245520,-500.0,0.00019178,2]
[351948302,1738858245529,-1515.98,0.00019178,2]
[351948303,1738858245538,-619.43,0.00019178,2]
[351948304,1738858245547,-500.0,0.00019178,2]
[351948305,1738858245558,-474.14658583,0.00019178,2]
[351948306,1738858245568,-500.0,0.00019178,2]
[351948307,1738858245576,-530.8,0.00019178,2]
[351948308,1738858245586,-500.0,0.00019178,2]
[351948309,1738858245596,-1116.51,0.00019178,2]
[351948310,1738858245606,-500.0,0.00019178,2]
[351948311,1738858245615,-500.0,0.00019178,2]
[351948312,1738858245624,-500.0,0.00019178,2]
[351948313,1738858245634,-500.0,0.00019178,2]
[351948314,1738858245643,-663.8,0.00019178,2]
[351948315,1738858245652,-500.0,0.00019178,2]
[351948316,1738858245662,-500.0,0.00019178,2]
[351948317,1738858245672,-500.0,0.00019178,2]
[351948318,1738858245682,-500.0,0.00019178,2]
[351948319,1738858245691,-500.0,0.00019178,2]
[351948320,1738858245701,-1103.42,0.00019178,2]
[351948321,1738858245710,-500.0,0.00019178,2]
[351948322,1738858245720,-500.0,0.00019178,2]
[351948323,1738858245729,-500.0,0.00019178,2]
[351948324,1738858245739,-500.0,0.00019178,2]
[351948325,1738858245748,-500.0,0.00019178,2]
[351948326,1738858245758,-500.0,0.00019178,2]
[351948327,1738858245769,-500.0,0.00019178,2]
[351948328,1738858245779,-500.0,0.00019178,2]
[351948329,1738858245788,-822.97,0.00019178,2]
[351948330,1738858245797,-664.93,0.00019178,2]
[351948331,1738858245807,-500.0,0.00019178,2]
[351948332,1738858245816,-679.37,0.00019178,2]
[351948333,1738858245826,-1249.69,0.00019178,2]
[351948334,1738858245836,-500.0,0.00019178,2]
[351948335,1738858245847,-734.01,0.00019178,2]
[351948336,1738858245856,-500.0,0.00019178,2]
[351948337,1738858245866,-500.0,0.00019178,2]
[351948338,1738858245875,-500.0,0.00019178,2]
[351948341,1738858246068,-976.75,0.00019178,2]
[351948342,1738858246078,-500.0,0.00019178,2]
[351948343,1738858246088,-500.0,0.00019178,2]
[351948344,1738858246098,-500.0,0.00019178,2]
[351948345,1738858246107,-500.0,0.00019178,2]
[351948346,1738858246117,-500.0,0.00019178,2]
[351948347,1738858246126,-707.66,0.00019178,2]
[351948348,1738858246137,-500.0,0.00019178,2]
[351948349,1738858246147,-500.0,0.00019178,2]
[351948350,1738858246160,-1440.59,0.00019178,2]
[351948351,1738858246170,-500.0,0.00019178,2]
[351948352,1738858246180,-870.82,0.00019178,2]
[351948353,1738858246190,-703.79,0.00019178,2]
[351948354,1738858246200,-1110.22,0.00019178,2]
[351948355,1738858246210,-500.0,0.00019178,2]
[351948356,1738858246220,-500.0,0.00019178,2]
[351948357,1738858246230,-500.0,0.00019178,2]
[351948358,1738858246241,-588.28,0.00019178,2]
[351948359,1738858246250,-500.0,0.00019178,2]
[351948360,1738858246261,-500.0,0.00019178,2]
[351948361,1738858246275,-1852.54,0.00019178,2]
[351948362,1738858246284,-1218.78,0.00019178,2]
[351948363,1738858246294,-500.0,0.00019178,2]
[351948364,1738858246303,-500.0,0.00019178,2]
[351948365,1738858246313,-500.0,0.00019178,2]
[351948366,1738858246323,-500.0,0.00019178,2]
[351948367,1738858246333,-249.76465837,0.00019178,2]
[351948368,1738858246342,-500.0,0.00019178,2]
[351948369,1738858246357,-500.0,0.00019178,2]
[351948370,1738858246377,-500.0,0.00019178,2]
[351948371,1738858246400,-901.43,0.00019178,2]
[351948372,1738858246458,-500.0,0.00019178,2]
[351948373,1738858246533,-500.0,0.00019178,2]
[351948374,1738858246654,-1357.34,0.00019178,2]
[351948375,1738858246754,-500.0,0.00019178,2]
[351948376,1738858246869,-1090.09,0.00019178,2]
[351948377,1738858246985,-500.0,0.00019178,2]
[351948378,1738858247067,-500.0,0.00019178,2]
[351948379,1738858247152,-218.68835765,0.00019178,2]
[351948380,1738858247247,-500.0,0.00019178,2]
[351948381,1738858247364,-366.25164345,0.00019178,2]
[351948382,1738858247439,-1205.92,0.00019178,2]
[351948383,1738858247524,-500.0,0.00019178,2]
[351948384,1738858247540,-500.0,0.00019178,2]
[351948385,1738858247551,-930.18,0.00019178,2]
[351948386,1738858247562,-500.0,0.00019178,2]
[351948387,1738858247573,-500.0,0.00019178,2]
[351948388,1738858247583,-500.0,0.00019178,2]
[351948389,1738858247594,-1518.44,0.00019178,2]
[351948390,1738858247604,-500.0,0.00019178,2]
[351948391,1738858247614,-500.0,0.00019178,2]
[351948392,1738858247623,-574.72,0.00019178,2]
[351948393,1738858247633,-1605.72,0.00019178,2]
[351948394,1738858247643,-965.56,0.00019178,2]
[351948395,1738858247652,-500.0,0.00019178,2]
[351948396,1738858247661,-500.0,0.00019178,2]
[351948397,1738858247671,-515.61156187,0.00019178,2]
[351948398,1738858247681,-500.0,0.00019178,2]
[351948399,1738858247691,-500.0,0.00019178,2]
[351948400,1738858247701,-1029.84,0.00019178,2]
[351948401,1738858247710,-500.0,0.00019178,2]
[351948402,1738858247720,-500.0,0.00019178,2]
[351948403,1738858247730,-500.0,0.00019178,2]
[351948404,1738858247741,-1255.26,0.00019178,2]
[351948405,1738858247751,-502.45588604,0.00019178,2]
[351948406,1738858247760,-500.0,0.00019178,2]
[351948408,1738858247774,-500.0,0.00019178,2]
[351948409,1738858247784,-922.1,0.00019178,2]
[351948410,1738858247795,-746.06,0.00019178,2]
[351948411,1738858247804,-500.0,0.00019178,2]
[351948412,1738858247814,-500.0,0.00019178,2]
[351948413,1738858247824,-945.53,0.00019178,2]
[351948414,1738858247834,-500.0,0.00019178,2]
[351948415,1738858247844,-1226.32,0.00019178,2]
[351948416,1738858247854,-500.0,0.00019178,2]
[351948417,1738858247865,-500.0,0.00019178,2]
[351948418,1738858247874,-808.83,0.00019178,2]
[351948419,1738858247884,-1302.78,0.00019178,2]
[351948420,1738858247894,-500.0,0.00019178,2]
[351948421,1738858247904,-1678.82,0.00019178,2]
[351948422,1738858247914,-500.0,0.00019178,2]
[351948423,1738858247924,-715.76,0.00019178,2]
[351948424,1738858247933,-1095.9,0.00019178,2]
[351948425,1738858247943,-500.0,0.00019178,2]
[351948426,1738858247953,-500.0,0.00019178,2]
[351948427,1738858247964,-500.0,0.00019178,2]
[351948428,1738858247974,-570.78,0.00019178,2]
[351948429,1738858247984,-997.69,0.00019178,2]
[351948430,1738858247994,-500.0,0.00019178,2]
[351948431,1738858248003,-660.58,0.00019178,2]
[351948432,1738858248013,-500.0,0.00019178,2]
[351948433,1738858248027,-500.0,0.00019178,2]
[351948434,1738858248038,-2224.59,0.00019178,2]
[351948435,1738858248049,-994.61,0.00019178,2]
[351948436,1738858248059,-706.61,0.00019178,2]
[351948437,1738858248071,-1482.09,0.00019178,2]
[351948438,1738858248082,-1118.96,0.00019178,2]
[351948439,1738858248094,-1306.73,0.00019178,2]
[351948440,1738858248105,-500.0,0.00019178,2]
[351948441,1738858248116,-500.0,0.00019178,2]
[351948442,1738858248126,-651.57,0.00019178,2]
[351948443,1738858248137,-514.21,0.00019178,2]
[351948444,1738858248148,-1730.22,0.00019178,2]
[351948445,1738858248162,-500.0,0.00019178,2]
[351948446,1738858248173,-500.0,0.00019178,2]
[351948447,1738858248183,-1553.26,0.00019178,2]
[351948448,1738858248193,-1203.34,0.00019178,2]
[351948449,1738858248205,-721.29,0.00019178,2]
[351948450,1738858248216,-3118.21,0.00019178,2]
[351948451,1738858248227,-1157.73,0.00019178,2]
[351948452,1738858248240,-500.0,0.00019178,2]
[351948453,1738858248251,-500.0,0.00019178,2]
[351948454,1738858248263,-581.33,0.00019178,2]
[351948455,1738858248278,-500.0,0.00019178,2]
[351948456,1738858248288,-1439.44,0.00019178,2]
[351948457,1738858248300,-1347.34,0.00019178,2]
[351948458,1738858248310,-500.0,0.00019178,2]
[351948459,1738858248321,-521.83844576,0.00019178,2]
[351948460,1738858248332,-500.0,0.00019178,2]
[351948461,1738858248342,-500.0,0.00019178,2]
[351948462,1738858248352,-500.0,0.00019178,2]
[351948463,1738858248363,-500.0,0.00019178,2]
[351948464,1738858248374,-523.82,0.00019178,2]
[351948465,1738858248385,-500.0,0.00019178,2]
[351948466,1738858248395,-1408.36,0.00019178,2]
[351948467,1738858248406,-500.0,0.00019178,2]
[351948468,1738858248416,-604.4,0.00019178,2]
[351948469,1738858248427,-1822.9,0.00019178,2]
[351948470,1738858248437,-844.32,0.00019178,2]
[351948471,1738858248448,-1279.12,0.00019178,2]
[351948472,1738858248458,-707.61,0.00019178,2]
[351948473,1738858248468,-2080.63,0.00019178,2]
[351948474,1738858248479,-910.5,0.00019178,2]
[351948475,1738858248489,-500.0,0.00019178,2]
[351948476,1738858248500,-1200.0,0.00019178,5]
[351948477,1738858248510,-1585.5,0.00019178,2]
[351948478,1738858248522,-1680.48,0.00019178,2]
[351948479,1738858248533,-1290.27,0.00019178,2]
[351948480,1738858248543,-500.0,0.00019178,2]
[351948481,1738858248555,-500.0,0.00019178,2]
[351948482,1738858248566,-500.0,0.00019178,2]